Cogmind - Beta 15 @@@ ROGUE MODE // 2025.07.26 @ 10:16:48 Player: AussieBBQ Result: Destroyed by EE-BXA(R) with Subdweller Machine Gun Performance ------------- Evolutions (0) 0 Regions Visited (3) 600 Robots Destroyed (19) 95 Value Destroyed (460) 460 Prototype IDs (0) 0 Alien Tech Used (0) 0 Bonus (0) 0 TOTAL SCORE: 1155 Bonus ------- None Cogmind --------- Core Integrity 0/250 Matter 113/300 Energy 250/250 System Corruption 0% Temperature Cool (6) Movement Walking (260) Ox2 Location -10/Subcaves Parts ------- > --- POWER (1) -------- Ion Engine > --- PROPULSION (2) --- Aluminum Leg > --- UTILITY (2) ------ Medium Storage Unit Makeshift Light Armor Plating > --- WEAPON (2) ------- Assault Rifle Subdweller Machine Gun > --- INVENTORY (10) --- Subdweller Power Source Light Treads Light Treads Large Storage Unit Large Storage Unit Assault Rifle Grenade Launcher Piercing Trap Peak State ------------ > --- POWER ------------ Ion Engine > --- PROPULSION ------- Aluminum Leg Aluminum Leg > --- UTILITY ---------- Medium Storage Unit Makeshift Light Armor Plating > --- WEAPON ----------- Assault Rifle Subdweller Shrapnel Launcher > --- INVENTORY -------- Subdweller Power Source Light Treads Light Treads Large Storage Unit Large Storage Unit Assault Rifle Subdweller Machine Gun Grenade Launcher Piercing Trap [Rating: 12] Favorites ----------- Power Ion Engine Engine Ion Engine Propulsion Aluminum Leg Leg Aluminum Leg Utility Medium Storage Unit Device Seismic Detector Storage Medium Storage Unit Protection Makeshift Light Armor Plating Weapon Assault Rifle Energy Gun Particle Gun Ballistic Gun Assault Rifle Launcher Subdweller Shrapnel Launcher Build | -11 -10 -10 -10 ------- Run | Yrd Mat Min Sub Slots Evolved . | . . . . Power . | . . . . Propulsion . | . . . . Utility . | . . . . Weapon . | . . . . Parts Attached 19 | 7 2 . 10 Power 2 | 1 . . 1 Engine 2 | 1 . . 1 Core . | . . . . Reactor . | . . . . Propulsion 4 | 2 . . 2 Treads . | . . . . Leg 4 | 2 . . 2 Wheel . | . . . . Hover . | . . . . Flight . | . . . . Utility 6 | 2 1 . 3 Device 2 | 1 . . 1 Storage 3 | 1 1 . 1 Processor . | . . . . Hackware . | . . . . Protection 1 | . . . 1 Artifact . | . . . . Weapon 7 | 2 1 . 4 Energy Gun 1 | . 1 . . Energy Cannon . | . . . . Ballistic Gun 4 | 2 . . 2 Ballistic Cannon . | . . . . Launcher 2 | . . . 2 Special Weapon . | . . . . Impact Weapon . | . . . . Slashing Weapon . | . . . . Piercing Weapon . | . . . . Special Melee Weapon . | . . . . Unidentified Prototypes . | . . . . Parts Lost 8 | . . . 8 Power 1 | . . . 1 Propulsion 3 | . . . 3 Utility 2 | . . . 2 Weapon 2 | . . . 2 Highest Loss Streak 3 | . . . 3 To Critical Strikes . | . . . . Average Backups 8 | 4 9 10 9 Power . | . 1 1 . Propulsion 3 | 2 4 4 3 Utility 1 | . 1 2 1 Weapon 2 | . 2 3 3 Tool/Special . | . . . . Unused Backups 12 | 2 6 . 4 Power 1 | . . . 1 Propulsion 9 | 2 5 . 2 Utility 2 | . 1 . 1 Weapon . | . . . . Tool/Special . | . . . . Average Slot Usage (%) 94 | . 100 100 89 Engine 14 | . 14 14 14 Leg 27 | . 28 28 26 Device 8 | . 14 14 4 Storage 14 | . 14 14 14 Energy Gun 7 | . 5 14 5 Ballistic Gun 19 | . 22 14 19 Launcher 1 | . . . 2 Peak Build Rating 12 | 7 9 9 12 Average Rating 7 | 5 8 9 7 On Entrance 6 | . 7 9 9 Naked Turns . | . . . . Heaviest Build 29 | 15 21 21 29 Greatest Support 20 | 20 20 20 20 Greatest Overweight (x) 3 | 3 1 1 2 Average Overweight (x) . | . . 1 . Largest Inventory Capacity 15 | 8 10 10 15 Average Capacity 9 | 7 9 10 10 Most Carried 10 | 8 10 10 10 Average Carried 8 | 4 9 10 9 Final Capacity 10 | 8 10 10 10 Final Carried 10 | 8 10 10 8 Class Distribution -------------------- 100% | Mutant Dominant Class ---------------- Mutant | -10/Materials Mutant | -10/Mines Mutant | -10/Subcaves Resources | -11 -10 -10 -10 ----------- Run | Yrd Mat Min Sub Matter Collected 644 | 272 197 . 175 Remotely . | . . . . Salvage Created 522 | 75 203 . 244 Parts 39 | 13 8 . 18 Haulers Intercepted 1 | . 1 . . Recyclers Shooed . | . . . . Parts Field Recycled . | . . . . Retrieved Matter . | . . . . Parts Self-Destructed 10 | . . . 10 Prevented . | . . . . Kills | -11 -10 -10 -10 ------- Run | Yrd Mat Min Sub Combat Hostiles Destroyed 14 | . 4 . 10 Guns 12 | . 4 . 8 AOE 2 | . . . 2 Classes Destroyed 5 | 1 2 . 2 Tunneler 4 | 4 . . . Hauler 1 | . 1 . . Swarmer 4 | . . . 4 Grunt 6 | . 4 . 2 Subdweller 4 | . . . 4 Best Kill Streak 4 | 3 2 . 4 Combat Bots Only 4 | . 2 . 4 Max Kills in Single Turn 2 | 1 1 . 2 Gunslinging 1 | . . . 1 Exploded 1 | . . . 1 Melee . | . . . . Uniques/NPCs Destroyed . | . . . . Combat | -11 -10 -10 -10 -------- Run | Yrd Mat Min Sub Hostile Shots Fired 108 | . 20 . 88 Missed 37 | . 6 . 31 Hits 71 | . 14 . 57 Projectile 71 | . 14 . 57 Critical Strikes 2 | . . . 2 Damage Taken 1228 | . 192 . 1036 Core 262 | . 53 . 209 Absorbed by Shields . | . . . . Core Remaining (%) 100 | 100 . . . Volleys Fired 59 | 8 16 . 35 Largest 2 | 2 2 . 2 Hottest 85 | 40 85 . 85 Shots Fired 104 | 16 32 . 56 Gun 95 | 16 32 . 47 Cannon . | . . . . Launcher 9 | . . . 9 Special . | . . . . Kinetic 81 | 16 30 . 35 Thermal 21 | . 2 . 19 Explosive 2 | . . . 2 Electromagnetic . | . . . . Robot Hit Streak 11 | 3 11 . 8 Robot Miss Streak 3 | 2 2 . 3 Penetration Max . | . . . . Secondary Targets 3 | . 1 . 2 Max Gunslinging Chain 1 | . 1 . 1 Shots Hit Robots 71 | 9 25 . 37 Core Hits 33 | 4 12 . 17 Critical Kills 1 | . 1 . . Critical Parts Destroyed . | . . . . Critical Strikes 3 | . 2 . 1 Burn 2 | . 1 . 1 Destroy 1 | . 1 . . Melee Attacks . | . . . . Impact . | . . . . Slashing . | . . . . Piercing . | . . . . Sneak Attacks . | . . . . Combat Hostiles . | . . . . Follow-up Attacks . | . . . . Damage Inflicted 1436 | 123 332 . 981 Guns 966 | 123 332 . 511 Cannons . | . . . . Explosions 470 | . . . 470 Melee . | . . . . Ramming . | . . . . Kinetic 1062 | 123 306 . 633 Thermal 277 | . 26 . 251 Explosive 97 | . . . 97 Electromagnetic . | . . . . Impact . | . . . . Slashing . | . . . . Piercing . | . . . . Highest Corruption . | . . . . Average Corruption . | . . . . Corruption Purged . | . . . . Corruption Blocked . | . . . . Overload Shots . | . . . . Overflow Damage 4 | . . . 4 Projectiles . | . . . . Explosions 4 | . . . 4 Melee . | . . . . Knockbacks . | . . . . Impact . | . . . . Kinetic . | . . . . Secondary . | . . . . Self-Inflicted Damage 183 | . . . 183 Shots 7 | . . . 7 Rammed . | . . . . Targets Rammed . | . . . . Kicked . | . . . . Crushed . | . . . . Highest Temperature 48 | . 48 . 15 Average Temperature 12 | . 12 . 10 Received Heat Transfer 357 | . 111 . 246 Siege Activations . | . . . . Martial Activations . | . . . . Shielding Activations . | . . . . Robots Disrupted . | . . . . Combat Hostiles . | . . . . Robots Corrupted . | . . . . Combat Hostiles . | . . . . Parts Fried . | . . . . Impact Corruptions . | . . . . Robots Melted . | . . . . Combat Hostiles . | . . . . Parts Melted . | . . . . Heat Transferred 814 | . 148 . 666 Parts Sabotaged . | . . . . Parts Stolen . | . . . . Parts Stripped . | . . . . Power Chain Reactions . | . . . . Alert | -11 -10 -10 -10 ------- Run | Yrd Mat Min Sub Maximum Alert Level . | . . . . Low Security (%) 100 | 100 100 100 . Level 1 . | . . . . Level 2 . | . . . . Level 3 . | . . . . Level 4 . | . . . . Level 5 . | . . . . High Security . | . . . . Max Security . | . . . . Peak Influence 70 | 5 70 6 . Initial 6 | . . 6 . Average 9 | . 25 . . Influence Increases 307 | 20 97 . 190 Destroy 0b10 Robot/C 200 | . 80 . 120 Destroy 0b10 Robot/NC 25 | 20 5 . . Destroy Leader 22 | . 12 . 10 Lose Combat Pursuer 60 | . . . 60 Influence Decreases 307 | 20 80 17 190 Entered New Map 11 | . . 11 . Time Decay 256 | 20 80 6 150 Lost Part 40 | . . . 40 Squads Dispatched . | . . . . Investigation . | . . . . Extermination . | . . . . Reinforcement . | . . . . Assault . | . . . . Garrison . | . . . . Intercept . | . . . . Searches Triggered . | . . . . Construction Impeded . | . . . . Haulers Reinforced . | . . . . Active Scanning Responses . | . . . . Cargo Convoy Interrupts . | . . . . Stealth | -11 -10 -10 -10 --------- Run | Yrd Mat Min Sub Distress Signals . | . . . . Communications Jammed . | . . . . Distress Signals . | . . . . Times Spotted 22 | . 4 . 18 Peak Tracking Total 6 | . 2 . 6 Tactical Retreats 2 | . . . 2 Traps | -11 -10 -10 -10 ------- Run | Yrd Mat Min Sub Traps Triggered . | . . . . Indirectly . | . . . . Trap Hack Attempts . | . . . . Triggered . | . . . . Disarmed . | . . . . Reprogrammed . | . . . . Reused . | . . . . Traps Extracted . | . . . . Installed . | . . . . Triggered . | . . . . Most Traps Carried 1 | . . . 1 Machines | -11 -10 -10 -10 ---------- Run | Yrd Mat Min Sub Machines Disabled . | . . . . Max in Single Turn . | . . . . Machines Repaired . | . . . . Machines Dismantled . | . . . . Machines Sabotaged . | . . . . Overloaded Fab Kills . | . . . . Hacking | -11 -10 -10 -10 --------- Run | Yrd Mat Min Sub Machines Accessed . | . . . . Terminals . | . . . . Fabricators . | . . . . Repair Stations . | . . . . Recycling Units . | . . . . Scanalyzers . | . . . . Garrison Access . | . . . . Total Hacks . | . . . . Successful . | . . . . Failed . | . . . . Catastrophic . | . . . . Database Lockouts . | . . . . Manual . | . . . . Terminals . | . . . . Fabricators . | . . . . Repair Stations . | . . . . Recycling Units . | . . . . Scanalyzers . | . . . . Garrison Access . | . . . . Terminal Hacks . | . . . . Fabricator Hacks . | . . . . Repair Station Hacks . | . . . . Recycling Unit Hacks . | . . . . Scanalyzer . | . . . . Garrison Access Hacks . | . . . . Unauthorized Hacks . | . . . . Terminals . | . . . . Fabricators . | . . . . Repair Stations . | . . . . Recycling Units . | . . . . Scanalyzers . | . . . . Garrison Access . | . . . . Data Cores Recovered . | . . . . Used . | . . . . Hacking Detections . | . . . . Full Trace Events . | . . . . Feedback Events . | . . . . Feedback Blocked . | . . . . Robot Schematics Acquired . | . . . . Robots Built . | . . . . Authchips . | . . . . Time . | . . . . Total Robot Build Rating . | . . . . Part Schematics Acquired . | . . . . Parts Built . | . . . . Authchips . | . . . . Time . | . . . . Total Part Build Rating . | . . . . Parts Repaired . | . . . . Time . | . . . . Parts Recycled . | . . . . Recycled Matter . | . . . . Retrieved Matter . | . . . . Retrieved Components . | . . . . Parts Scanalyzed . | . . . . Part Schematics Acquired . | . . . . Parts Damaged . | . . . . Bothacking | -11 -10 -10 -10 ------------ Run | Yrd Mat Min Sub Used RIF Installer . | . . . . Robots Hacked . | . . . . Non-combat . | . . . . Combat . | . . . . Robot Hacks Applied . | . . . . Relay Couplers Released . | . . . . Fabnet Peak Effective % . | . . . . Robots Rewired . | . . . . Allies Hacked . | . . . . Hacks Repelled . | . . . . Allies | -11 -10 -10 -10 -------- Run | Yrd Mat Min Sub Total Allies . | . . . . Largest Group . | . . . . Highest-Rated Group . | . . . . Highest-Rated Ally . | . . . . Total Orders . | . . . . Ally Attacks . | . . . . Total Damage . | . . . . Kills . | . . . . Allies Corrupted . | . . . . Allies Melted . | . . . . Intel | -11 -10 -10 -10 ------- Run | Yrd Mat Min Sub Active Infowar (turns) 682 | 92 274 276 40 Seismic 682 | 92 274 276 40 Robot Analysis Total . | . . . . Derelict Logs Recovered 2 | . . 2 . Drone Launches . | . . . . Drone Recoveries . | . . . . Exploration | -11 -10 -10 -10 ------------- Run | Yrd Mat Min Sub Turns Passed 1525 | 235 274 276 740 Spaces Moved 748 | 159 137 146 306 Core 13 | 13 . . . Treads . | . . . . Legs 735 | 146 137 146 306 Wheels . | . . . . Hover . | . . . . Flight . | . . . . Fastest Speed 50 | 50 120 190 120 Average Speed 153 | 119 147 190 156 Slowest Speed 260 | 200 190 190 260 Overloaded Moves . | . . . . Propulsion Burnouts . | . . . . Robots Hopped . | . . . . Potential Cave-ins . | . . . . Cave-ins Triggered . | . . . . Exploration Rate (%) 26 | 5 24 46 30 Regions Visited 3 Branch Regions 2 Pre-discovered Areas . | . . . . Known Exits Taken . | . . . . Unknown Exits Taken 3 | 1 1 1 . Scrap Searched . | . . . . Spaces Dug 31 | . . . 31 Terrain Destroyed 126 | . . . 126 Melee . | . . . . Projectile . | . . . . AOE 126 | . . . 126 Terrain Rammed . | . . . . Walls Destroyed . | . . . . Machines Disabled . | . . . . Actions | -11 -10 -10 -10 --------- Run | Yrd Mat Min Sub Total 1023 | 187 182 145 509 Wait 155 | 2 7 . 146 Move 745 | 158 136 145 306 Hop . | . . . . Pick Up 24 | 10 11 . 3 Fast Attach 11 | 7 1 . 3 Attach 6 | . . . 6 Detach 2 | . . . 2 Swap 8 | . 1 . 7 Drop 13 | 2 10 . 1 Fire 59 | 8 16 . 35 Melee . | . . . . Ram . | . . . . Kick . | . . . . Crush . | . . . . Escape Stasis . | . . . . Rewire . | . . . . Trap . | . . . . Miscellaneous . | . . . . Route ------- -11/Scrapyard -10/Materials (discovered 2 exits: [*Mat] / [*Min]) -10/Mines -10/Subcaves (discovered 1 exit: [*Rec]) History --------- Turn | Location | Event 18 | -11/Scrapyard | Discovered new exit (range 16) 236 | -11/Scrapyard | Entered Materials 310 | -10/Materials | Build established: Mutant 455 | -10/Materials | Discovered new exit (range 10) 495 | -10/Materials | Discovered new exit (range 9) 510 | -10/Materials | Entered Mines 560 | -10/Mines | Learned Materials emergency access door positions 721 | -10/Mines | Learned location of 1 exit from Materials 775 | -10/Mines | Discovered new exit (range 8) 786 | -10/Mines | Entered Subcaves 927 | -10/Subcaves | Discovered new exit (range 11) 1051 | -10/Subcaves | Shifting Twisted Machinery released Sub. Shrapnel Launcher 1058 | -10/Subcaves | Lost 3 parts (1p1n1u) 1060 | -10/Subcaves | Shifting Twisted Machinery released Sub. Optics 1486 | -10/Subcaves | Core integrity fell below 50% 1523 | -10/Subcaves | Core integrity fell below 20% 1526 | -10/Subcaves | Destroyed by EE-BXA(R) with Subdweller Machine Gun Last Messages --------------- 01403_ Acquired 20 matter. 01411_ Dropped Particle Gun. 01414_ Subatomizers dissect the Particle Gun. 01415_ Acquired Piercing Trap. 01424_ Subatomizers dissect the Particle Gun, destroying it. 01447_ Aluminum Leg destroyed. 01447_ Destroyed Aluminum Leg. 01467_ Acquired Mak. Light Armor Plating. 01482_ Aluminum Leg destroyed. 01484_ LO-PHN(R): "ARGHSUB!" 01490_ LO-PHN(R) destroyed. 01493_ Critical hit (Destroy). 01499_ Sub. Shrapnel Launcher destroyed. 01500_ 84-KU9(R): "ARGHSUB!" 01500_ TG-379(R): "FREEEEDUMB!" 01500_ Subatomizers dissect the Sub. Machine Gun. 01510_ EE-BXA(R) affixes Scrap Shield Fragment to Scrap Shield. Map ----- +----------------------------------------------------+ | ???????????????????????????????????????????????? | | ???????????????????????????????????????????????? | | ???????????????????????????????????????????????? | | ???????????????????????????????????????????????? | | ???????????????????????????????????????????????? | | ???????????????????????????????????????????????? | | ????????????????????????????? ""#?????????????? | | ??????????????????????????? ?????????????? | | ?????????????????????????# ?????????????? | | ??????????????????????????" ?????????????? | | ???????????????????? ??? ?????????????? | | ???????????????????# #### #?????????????? | | ??????????????????## ## " ""#?????????????? | | ?????????????????## #" "#?????????????? | | ????????????????## #" ""##????????????? | | ????????????????# #????????????? | | ???????? ???????? "" #????????????? | | ??????# ???????? "" " #????????????? | | ??????# ##?????? ? " [! #????????????? | | ??????# ??????# #??# &%* #????????????? | | ??????? ?????# ???#""" =;#?????????????? | | ????????? ???### ##????#" #??????????????? | | ??????????? ???#;; ;##??## ##??????????????? | | ????????????# ####; ;;#### #??????????????? | | ????????????##"""#;; ; ; R #??????????????? | | ????????????#; @R" #??????????????? | | ???????????## ; " #?????????????? | | ???????????# ;;### #?????????????? | | ???????????# & ;##?## ##?????????????? | | ???????????# ;##???# ##??????????????? | | ?????## ??## ###????## ##???????????????? | | ?????# ?# ##??????# ????????????????? | | ?????## ## = ###?### ##???????????????? | | ?????# # # #????????????????? | | ?????## % #???????????????? | | ?????# #???????????????? | | ?????# "# # ### ##????????????????? | | ?????# #######??#??????????????????? | | ?????# #####???????????????????????? | | ?????## ## ##??????????????????????? | | ??????####?# #??????????????????????? | | ???????????# #??????????????????????? | | ???????????# #??????????????????????? | | ???????????## ####?###???????????????? | | ????????????### ### ##??????????????? | | ??????????????## ### #??????????????? | | ??????????????# ####?# #??????????????? | | ???????????# ##??## ##??????????????? | | ??????????# ## #### ##??????????????? | | ??????????# ## ### #??????????????? | +----------------------------------------------------+ Best States ------------- Heat Dissipation 35 Energy Generation 10 Energy Capacity 250 Matter Stores 300 Matter Capacity 300 Sight Range 16 Terrain Scan Density 10 Armor Coverage 100 Evasion (%) 55 Item Schematics ----------------- None Robot Schematics ------------------ None Fabricated ------------ Nothing Repaired ---------- Nothing Alien Tech Used ----------------- None Achievements -------------- None Challenges ------------ None Game ------ Seed FusionAntigravSink Manual? 0 Play Time 00:13:55 Cumulative 6.4 hours Start 2025.07.26 @ 09:35:34 End 2025.07.26 @ 10:16:48 Sessions 1 Manual Loads 0 Difficulty Rogue Special Mode None Game No. 14 Rogue 14 Adventurer 0 Explorer 0 Win Type - Total 0 Types 0/0/0/0/0/0/0/0/0/0 Lore% 15 Gallery% 14 Achievement% 12 Wizard Run 0 Options --------- Layout 1 ASCII 0 Keyboard 0 Movement Numpad Keybinds 0 Fullscreen 2 Font 24/Smallcaps Map View 50x35 Zoom Use 0% Tactical HUD 1 Map Filters NONE Filters NONE Steam 1 RUN: 9cfa2e3b-bb43-45b1-8fe8-f1ff91087af9